Cogmind - Beta 16.1 @@@ ROGUE MODE // 2026.02.16 @ 22:46:02 Player: Kaisercar Result: Escaped! Performance ------------- Evolutions (9) 4500 Regions Visited (27) 5400 Robots Destroyed (294) 1470 Value Destroyed (14703) 14703 Prototype IDs (53) 1060 Alien Tech Used (0) 0 Bonus (9939) 9939 TOTAL SCORE: 37072 Bonus ------- High Alert Combat Kills 527 Follower Combat Kills 1056 Entered Garrisons 400 Entered DSFs 500 Aligned with FarCom 300 Met Data Miner 300 Acquired ECA 300 Met Warlord at Base 500 MAIN.C Attacked Warlord 500 Warlord Defense Kills 1732 Met Warlord at Command 2000 Win 3000 Friendly Fire -1176 Cogmind --------- Core Integrity 1201/1600 Matter 300/300 Energy 146/150 System Corruption 3% Temperature Cool (8) Movement Hovering (56) Location To Epsilon Eridani Parts ------- > --- POWER (3) -------- Micro Antimatter Reactor > --- PROPULSION (6) --- Improved Antigrav System Improved Antigrav System > --- UTILITY (11) ----- (None) > --- WEAPON (5) ------- (None) > --- INVENTORY (5) ---- Advanced Heat Sink Compact Matter Pod (150) Improved Point Defense System Quantum Rifle Compact Linear Accelerator Peak State ------------ > --- POWER ------------ Reinforced Fission Core Quantum Reactor Light Quantum Reactor > --- PROPULSION ------- Biometal Heavy Treads Biometal Heavy Treads Biometal Heavy Treads > --- UTILITY ---------- Advanced Heat Sink Advanced Cooling System Large Storage Unit Advanced Targeting Computer Advanced Target Analyzer Experimental Core Analyzer Centrium Light Armor Plating Centrium Light Armor Plating Medium Regenerative Plating Thermal Barrier Advanced Shield Generator > --- WEAPON ----------- Matter Neutralizer Nova Cannon Helical Railgun Linear Accelerator Enhanced Hardcell Cannon > --- INVENTORY -------- Biometal Heavy Treads Advanced Heavy Siege Treads Advanced Heat Sink Compact Matter Pod Advanced Signal Interpreter Improved Point Defense System High-powered Tractor Beam Gamma Rifle Compact HERF Cannon Enhanced Nova Cannon Compact Linear Accelerator Fusion Bomb Launcher [Rating: 202] Favorites ----------- Power Light Nuclear Core Engine Ion Engine Power Core Light Nuclear Core Reactor Quantum Reactor Propulsion Armored Treads Treads Armored Treads Leg Flexi-carbon Leg Wheel Centrium Wheel Hover Unit Backup Propulsion III Utility High-capacity Storage Unit Device Advanced Heat Sink Storage High-capacity Storage Unit Processor Advanced Targeting Computer Hackware Hacking Suite Protection Medium Regenerative Plating Weapon XL Autogun Subcomponent Energy Gun Plasma Rifle Energy Cannon Matter Neutralizer Ballistic Gun XL Autogun Subcomponent Ballistic Cannon Gauss Cannon Launcher Fusion Bomb Launcher Special Weapon Mining Laser Impact Weapon Heavy Flail Build | -11 -10 -10 -10 -9 -8 -8 -7 -7 -7 -7 -6 -6 -5 -5 -5 -4 -4 -4 -4 -4 -4 -4 -3 -3 -2 -1 -1 ------- Run | Yrd Mat Min Exi Min Mat Gar Fac Low Low Dat Pro Fac Fac Upp War Pro Fac Was Fac Gar Fac Ext Res DSF Res Acc Com Slots Evolved 18 | . . . . . 4 . 2 . . . . 2 2 . . . 2 . . . . . 2 . 2 2 . Power 2 | . . . . . . . . . . . . . 1 . . . . . . . . . . . . 1 . Propulsion 4 | . . . . . 2 . . . . . . . . . . . . . . . . . . . 2 . . Utility 9 | . . . . . . . 2 . . . . 2 1 . . . 2 . . . . . 1 . . 1 . Weapon 3 | . . . . . 2 . . . . . . . . . . . . . . . . . 1 . . . . Parts Attached 274 | 6 8 1 . 5 12 11 7 3 3 . 6 11 18 . 16 7 8 2 4 38 4 35 4 14 21 4 26 Power 34 | 1 2 . . 1 . 2 1 . 1 . 1 2 4 . 1 1 . . . 5 . 4 . 4 1 1 2 Engine 6 | 1 1 . . . . . 1 . 1 . . 1 1 . . . . . . . . . . . . . . Core 15 | . 1 . . 1 . 2 . . . . 1 1 3 . 1 . . . . 1 . 2 . 2 . . . Reactor 13 | . . . . . . . . . . . . . . . . 1 . . . 4 . 2 . 2 1 1 2 Propulsion 69 | 1 2 1 . 1 9 . . 1 1 . 1 2 4 . 5 1 3 2 . 12 . 9 1 3 4 . 6 Treads 25 | 1 2 1 . . 4 . . 1 1 . . . 2 . 1 . 1 . . 1 . . . 2 4 . 4 Leg 33 | . . . . . 5 . . . . . 1 . . . 4 1 . . . 11 . 9 1 1 . . . Wheel 9 | . . . . 1 . . . . . . . 2 2 . . . 2 2 . . . . . . . . . Hover 2 | . . . . . . . . . . . . . . . . . . . . . . . . . . . 2 Flight . | . . . . . . . . . . . . . . . . . . . . . . . . . . . . Utility 95 | 2 2 . . 2 2 1 3 2 . . 3 5 6 . 8 2 4 . 2 8 3 10 2 6 8 2 12 Device 48 | 1 1 . . . 1 1 1 2 . . 1 2 3 . 2 1 1 . . 5 3 7 2 2 4 1 7 Storage 7 | 1 1 . . . 1 . . . . . . . . . 1 . . . . 1 . 1 . . 1 . . Processor 20 | . . . . . . . 1 . . . . 2 1 . 2 1 1 . 1 2 . 1 . 2 1 1 4 Hackware 3 | . . . . . . . . . . . . 1 1 . 1 . . . . . . . . . . . . Protection 17 | . . . . 2 . . 1 . . . 2 . 1 . 2 . 2 . 1 . . 1 . 2 2 . 1 Artifact . | . . . . . . . . . . . . . . . . . . . . . . . . . . . . Weapon 76 | 2 2 . . 1 1 8 3 . 1 . 1 2 4 . 2 3 1 . 2 13 1 12 1 1 8 1 6 Energy Gun 21 | . 2 . . . . 2 . . 1 . . . . . 1 1 . . . 6 . 5 . 1 . . 2 Energy Cannon 14 | . . . . . . 2 1 . . . . . 1 . . . 1 . . 2 . 2 . . 2 . 3 Ballistic Gun 24 | 2 . . . . 1 . . . . . 1 2 2 . 1 2 . . . 4 1 3 1 . 4 . . Ballistic Cannon 9 | . . . . 1 . 1 1 . . . . . . . . . . . 2 . . 1 . . 2 . 1 Launcher 4 | . . . . . . 2 . . . . . . 1 . . . . . . . . . . . . 1 . Special Weapon 2 | . . . . . . 1 . . . . . . . . . . . . . . . 1 . . . . . Impact Weapon 2 | . . . . . . . 1 . . . . . . . . . . . . 1 . . . . . . . Slashing Weapon . | . . . . . . . . . . . . . . . . . . . . . . . . . . . . Piercing Weapon . | . . . . . . . . . . . . . . . . . . . . . . . . . . . . Special Melee Weapon . | . . . . . . . . . . . . . . . . . . . . . . . . . . . . Unidentified Prototypes 17 | . . . . . . 1 . . . . 1 . 1 . 6 2 . . . . . 1 . . 3 1 1 Corrupted Parts 9 | . . . . . . . . . . . . . . . 3 2 . . . 2 . 2 . . . . . System Corruption 44 | . . . . . . . . . . . . . . . 16 12 . . . 9 . 7 . . . . . Parts Lost 127 | . 4 1 . 4 . 1 . . 2 . 11 6 2 . 15 1 2 3 3 28 . 18 . 1 . . 25 Power 20 | . 1 . . 1 . 1 . . 1 . 2 . . . 3 . . . . 4 . 4 . . . . 3 Propulsion 27 | . 1 . . 1 . . . . . . 4 2 1 . 2 . 1 1 1 7 . 4 . . . . 2 Utility 38 | . 1 1 . 1 . . . . . . 4 3 . . 6 . . 1 1 5 . 1 . 1 . . 13 Weapon 42 | . 1 . . 1 . . . . 1 . 1 1 1 . 4 1 1 1 1 12 . 9 . . . . 7 Highest Loss Streak 19 | . 3 1 . 2 . 1 . . 1 . 7 4 2 . 13 1 2 3 3 6 . 15 . 1 . . 19 To Critical Strikes 4 | . . . . . . . . . . . . . . . . 1 . . 1 1 . . . . . . 1 Average Backups 14 | 4 16 23 22 20 18 16 15 16 15 16 16 15 19 18 17 6 14 11 7 6 5 9 9 8 10 11 11 Power 1 | . 2 2 2 2 1 . 1 1 . . . . 2 2 1 . . . . . . . . . 1 . . Propulsion 1 | 2 5 5 4 4 . . . . . . . . . 1 1 1 1 1 2 2 2 1 . 1 1 2 1 Utility 6 | . 5 10 10 9 9 11 9 8 8 8 6 4 6 7 7 2 8 7 1 1 1 4 6 4 6 7 5 Weapon 4 | . 3 5 5 4 6 4 5 6 6 7 8 9 9 7 6 2 3 2 2 2 1 3 3 2 1 2 4 Tool/Special . | . . . . . . . . . . . . . . . . . . . . . . . . . . . . Unused Backups 54 | . . 6 4 4 9 5 . . . . . . 3 . 1 . 1 5 1 1 1 2 . 2 7 . 2 Power 7 | . . 2 1 . 2 . . . . . . . 1 . . . 1 . . . . . . . . . . Propulsion 10 | . . 4 . 1 1 . . . . . . . 1 . . . . . . 1 . . . 1 1 . . Utility 26 | . . . 2 3 5 4 . . . . . . . . . . . 5 1 . 1 1 . 1 2 . 1 Weapon 11 | . . . 1 . 1 1 . . . . . . 1 . 1 . . . . . . 1 . . 4 . 1 Tool/Special . | . . . . . . . . . . . . . . . . . . . . . . . . . . . . Average Slot Usage (%) 86 | . 99 99 85 96 70 98 99 100 98 92 57 57 85 88 84 85 81 78 80 89 96 97 95 93 82 87 85 Engine 1 | . 13 . . . . . 1 7 6 7 4 3 . . . . . . . . . . . . . . . Core 4 | . . 14 14 14 9 9 5 . . . . . 10 11 10 . . . . 1 . 1 . 3 4 4 3 Reactor 2 | . . . . . . . . . . . . . . . . 5 5 5 5 6 10 7 9 5 4 8 7 Treads 14 | . 28 28 28 23 26 36 30 30 30 30 9 . 4 11 10 . 1 1 2 . . . . 5 13 12 11 Leg 3 | . . . . . 8 . . . . . 1 . . . . 22 17 . . 7 21 20 19 6 . . . Wheel 1 | . . . . 1 . . . . . . . 5 7 . . . . 18 12 12 . . . . . . . Device 10 | . 13 13 . . . 8 7 7 7 7 5 4 11 17 10 15 11 8 5 8 17 15 19 19 16 16 18 Storage 7 | . 14 14 14 14 9 9 7 7 7 7 7 6 5 5 5 5 5 5 5 3 . 4 4 4 4 4 3 Processor 8 | . . . . . . . . 7 7 7 4 4 8 5 5 16 15 21 22 27 26 25 14 10 13 15 11 Protection 5 | . . . . 13 8 . 13 7 7 7 8 3 4 5 7 . 8 5 7 . . 1 4 11 8 8 8 Energy Gun 7 | . 11 28 28 27 . 8 7 7 6 7 . 2 2 . . 1 . . 4 4 12 10 4 8 . . 1 Energy Cannon 2 | . . . . . . 8 7 7 7 7 . . 3 5 4 . . 5 3 1 . 1 4 4 6 4 8 Ballistic Gun 6 | . 16 . . . 8 . . . . . 6 12 13 11 10 12 14 6 4 7 2 3 11 9 6 8 2 Ballistic Cannon 3 | . . . . . . 8 14 7 12 7 6 3 . . 4 1 . . 4 5 . 2 . . 2 5 5 Peak Build Rating 202 | 6 11 15 17 22 59 59 53 51 56 49 69 50 84 81 95 96 103 109 109 110 105 116 129 143 169 186 202 Average Rating 75 | 4 8 13 15 17 56 40 51 49 53 49 51 34 64 81 83 89 89 97 101 100 98 103 120 134 158 183 186 On Entrance 70 | . 6 11 14 17 22 59 42 50 51 49 49 32 43 81 81 39 90 103 94 109 103 105 115 121 137 169 186 Avg Prop Armor Cover (%) 5 | . . . . 10 . . . . . . 3 4 . . . . 7 6 7 4 . . . . . . . Naked Turns 6 | . . . . . . . . . . . . . . . . . . . . . . . . . . . 6 Heaviest Build 152 | 15 90 89 88 94 102 73 83 75 79 69 77 75 98 89 104 94 102 101 107 107 46 80 77 113 131 147 152 Greatest Support 230 | 20 40 42 42 42 80 80 80 80 90 90 70 20 140 140 140 85 100 64 70 90 85 90 98 150 225 225 230 Greatest Overweight (x) 24 | 2 2 2 2 9 20 . 1 . . . 24 24 4 . 4 1 3 2 3 9 . 1 . 1 . . 2 Average Overweight (x) . | . 1 2 2 3 . . . . . . 4 5 1 . . 1 1 1 1 . . . . . . . . Largest Inventory Capacity 25 | 8 25 25 25 25 25 20 20 20 20 20 20 20 20 20 20 20 20 20 20 20 5 10 10 10 15 15 15 Average Capacity 18 | 7 24 25 25 25 20 20 20 20 20 20 20 20 20 20 20 20 20 20 20 14 5 9 10 10 12 15 14 Most Carried 25 | 7 23 25 25 25 23 20 20 20 20 20 19 19 20 19 20 14 19 18 13 11 5 10 10 10 15 15 15 Average Carried 16 | 4 16 24 24 24 19 19 19 19 19 20 17 15 19 19 18 7 15 10 7 6 4 9 9 9 12 13 13 Final Capacity 25 | 8 25 25 25 25 20 20 20 20 20 20 20 20 20 20 20 20 20 20 20 5 5 10 10 10 15 15 5 Final Carried 25 | 7 23 25 25 23 20 20 20 20 20 20 16 19 19 19 16 10 19 5 10 5 5 10 10 10 15 15 5 Class Distribution -------------------- 22% | Mutant 17% | Tank 15% | Scavenger-Gunner 14% | Scavenger-Skirmisher 13% | Skirmisher 9% | Scavenger-Tank 4% | Scavenger-Assassin Dominant Class ---------------- Mutant | -10/Materials Mutant | -10/Mines Mutant | -10/Exiles Mutant | -9/Mines Skirmisher | -8/Materials Skirmisher | -8/Garrison Tank | -7/Factory Tank | -7/Lower Caves Tank | -7/Lower Caves Tank | -7/Data Miner Tank | -6/Proximity Caves Skirmisher | -6/Factory Scavenger-Skirmisher | -5/Factory Scavenger-Assassin | -5/Upper Caves Tank | -5/Warlord Scavenger-Skirmisher | -4/Proximity Caves Scavenger-Skirmisher | -4/Factory Scavenger-Skirmisher | -4/Waste Scavenger-Skirmisher | -4/Factory Scavenger-Gunner | -4/Garrison Scavenger-Assassin | -4/Factory Scavenger-Gunner | -4/Extension Scavenger-Skirmisher | -3/Research Scavenger-Tank | -3/DSF Scavenger-Gunner | -2/Research Scavenger-Skirmisher | -1/Access Scavenger-Tank | -1/Command Resources | -11 -10 -10 -10 -9 -8 -8 -7 -7 -7 -7 -6 -6 -5 -5 -5 -4 -4 -4 -4 -4 -4 -4 -3 -3 -2 -1 -1 ----------- Run | Yrd Mat Min Exi Min Mat Gar Fac Low Low Dat Pro Fac Fac Upp War Pro Fac Was Fac Gar Fac Ext Res DSF Res Acc Com Matter Collected 10910 | 280 513 109 . 60 566 542 15 201 461 . 725 552 440 . 719 341 183 . 198 1452 93 840 . 452 729 82 1357 Remotely 2030 | . . . . . 238 . . . 167 . . . . . 502 . . . . 746 . 166 . 211 . . . Salvage Created 13204 | 121 581 36 . 134 1066 811 50 . 381 . 844 299 708 . 676 284 232 . 260 1451 385 1916 . 538 643 427 1361 Parts 582 | 8 36 4 . . 55 50 1 . 18 . 25 15 44 . 32 17 12 . 9 44 8 69 . 25 25 17 68 Haulers Intercepted 10 | . 2 . . . 3 . . . . . . . . . . . 1 . . . 1 2 . . . 1 . Recyclers Shooed 11 | . 1 . . . . . . . . . . 1 4 . . . . . . . 1 3 . . . . 1 Parts Field Recycled . | . . . . . . . . . . . . . . . . . . . . . . . . . . . . Retrieved Matter . | . . . . . . . . . . . . . . . . . . . . . . . . . . . . Parts Self-Destructed 47 | . . . . . . . . 1 15 . 25 . . . . 6 . . . . . . . . . . . Prevented 12 | . . . . . . . . 3 . . . . . . . 9 . . . . . . . . . . . Parts Restored . | . . . . . . . . . . . . . . . . . . . . . . . . . . . . Kills | -11 -10 -10 -10 -9 -8 -8 -7 -7 -7 -7 -6 -6 -5 -5 -5 -4 -4 -4 -4 -4 -4 -4 -3 -3 -2 -1 -1 ------- Run | Yrd Mat Min Exi Min Mat Gar Fac Low Low Dat Pro Fac Fac Upp War Pro Fac Was Fac Gar Fac Ext Res DSF Res Acc Com Combat Hostiles Destroyed 236 | . 14 2 . 9 11 25 . . 17 . 17 2 10 . 15 7 2 . 2 25 . 22 . 9 8 11 28 Guns 117 | . 13 2 . 8 11 9 . . 1 . 12 1 . . 4 5 2 . . 16 . 17 . 8 3 3 2 Cannons 61 | . . . . 1 . 12 . . 8 . 5 1 2 . 3 2 . . 2 8 . 3 . 1 3 1 9 AOE 48 | . . . . . . 4 . . 8 . . . 8 . 7 . . . . . . . . . . 6 15 Classes Destroyed 27 | 2 5 . . 1 3 2 1 . 1 . 2 . . . 4 1 . . . 1 . . . 1 2 . 1 Worker 11 | . 1 . . . 2 . 1 . . . . 3 1 . . . 1 . . . 2 . . . . . . Builder 5 | . . . . . 1 . . . . . . 1 2 . . . . . . . . 1 . . . . . Tunneler 8 | 2 1 . . . . . . . . . . . 2 . . . . . . . . 3 . . . . . Hauler 10 | . 2 . . . 3 . . . . . . . . . . . 1 . . . 1 2 . . . 1 . Recycler 14 | 1 1 . . . 3 . . . . . . 1 2 . . . . . 1 . 2 2 . . . . 1 Mechanic 1 | . . . . . . . . . . . . . . . . . . . . . . . . . 1 . . Operator 3 | . . . . . . . 1 . . . . 1 . . . . . . . . . 1 . . . . . Drone 3 | . . . . . . . . . . . 2 . . . . 1 . . . . . . . . . . . Watcher 11 | . 2 . . . 2 1 1 . . . . . 3 . . . . . . . 1 1 . . . . . Swarmer 66 | . 9 2 . . . 5 . . 7 . . . 8 . 4 4 . . . 5 . 6 . 3 . 5 8 Cutter 5 | . . . . . . . . . . . . . . . . . . . . . . . . . . . 5 Saboteur 1 | . . . . . . . . . . . . . . . . . . . . . . . . . 1 . . Grunt 67 | . 5 . . . 5 9 . . 7 . 10 . . . 2 . . . . 12 . 8 . 3 4 2 . Brawler 2 | . . . . . . . . . . . . . . . . . . . . 2 . . . . . . . Duelist 1 | . . . . . . . . . . . 1 . . . . . . . . . . . . . . . . Protector 2 | . . . . . . . . . . . . . . . 2 . . . . . . . . . . . . Sentry 20 | . . . . . 5 4 . . 2 . 1 . . . . . . . . . . 4 . . 2 1 1 Demolisher 3 | . . . . . . . . . . . . . . . 2 . . . . 1 . . . . . . . Specialist 1 | . . . . . . 1 . . . . . . . . . . . . . . . . . . . . . Hunter 27 | . . . . . 1 1 . . . . 2 1 . . 3 2 . . 2 2 . 3 . 2 1 2 5 Programmer 19 | . . . . . . 5 . . . . . 1 2 . 1 . 2 . . 2 . . . . . 1 5 Heavy 2 | . . . . . . . . . . . . . . . . . . . . . . . . 1 . . 1 Behemoth 5 | . . . . . . . . . 1 . 1 . . . . . . . . 1 . 1 . . . . 1 Executioner 3 | . . . . . . . . . . . . . . . 1 . . . . . . . . . . . 2 Tinkerer 1 | . . . . . . . . . . . . . . . . 1 . . . . . . . . . . . Assembled 9 | . . . . 9 . . . . . . . . . . . . . . . . . . . . . . . Surgeon 1 | . . . . . . . . . . . . . . . . . . . . . . . . . . . 1 Wasp 1 | . . . . . . . . . . . . 1 . . . . . . . . . . . . . . . Wizard 1 | . . . . . . . . . . . . . . . . . . . . . . . . . . . 1 Mutant 1 | . . . . . . . . . . . . . . . 1 . . . . . . . . . . . . Best Kill Streak 16 | 2 3 1 . 2 7 4 3 . 8 . 4 2 9 . 8 4 2 . 3 4 5 6 . 3 4 8 16 Combat Bots Only 16 | . 3 1 . 2 3 4 . . 8 . 4 1 4 . 8 4 2 . 2 4 . 5 . 3 4 8 16 Max Kills in Single Turn 9 | 1 1 1 . 1 2 2 2 . 2 . 1 1 4 . 4 2 1 . 1 1 3 2 . 1 2 3 9 Gunslinging 1 | . . . . . . . . . . . . . . . . . . . . . . 1 . . . . . Exploded 8 | . . . . . . 2 . . 2 . . . 4 . 3 . . . . . . . . . . 3 8 Melee . | . . . . . . . . . . . . . . . . . . . . . . . . . . . . Uniques/NPCs Destroyed . | . . . . . . . . . . . . . . . . . . . . . . . . . . . . Combat | -11 -10 -10 -10 -9 -8 -8 -7 -7 -7 -7 -6 -6 -5 -5 -5 -4 -4 -4 -4 -4 -4 -4 -3 -3 -2 -1 -1 -------- Run | Yrd Mat Min Exi Min Mat Gar Fac Low Low Dat Pro Fac Fac Upp War Pro Fac Was Fac Gar Fac Ext Res DSF Res Acc Com Hostile Shots Fired 1963 | . 123 9 . 34 24 98 . . 117 . 123 41 51 . 149 40 8 4 78 216 . 247 . 104 30 52 415 Missed 581 | . 39 1 . 12 7 25 . . 44 . 39 15 17 . 37 13 2 . 27 41 . 86 . 42 5 18 111 Hits 1382 | . 84 8 . 22 17 73 . . 73 . 84 26 34 . 112 27 6 4 51 175 . 161 . 62 25 34 304 Melee 18 | . . . . 10 . . . . . . . . . . 1 . . 4 . 2 . . . . . . 1 Projectile 1364 | . 84 8 . 12 17 73 . . 73 . 84 26 34 . 111 27 6 . 51 173 . 161 . 62 25 34 303 AOE 18 | . . . . . . . . . . . . . . . 14 . . . . 2 . . . . 1 . 1 Critical Strikes 68 | . . . . 3 . 4 . . . . 4 1 2 . 3 1 . 2 6 11 . 5 . 4 . . 22 Actively Blocked 3 | . . . . . . 1 . . . . . . . . . . . . 2 . . . . . . . . Part Disruptions 2 | . . . . . . . . . . . . . 1 . . . . . . . . . . . . . 1 Damage Taken 27066 | . 826 63 . 453 251 1156 . . 1195 . 1717 799 557 . 3002 341 199 199 687 3351 . 2847 . 1244 597 652 6930 Core 2745 | . 156 7 . 73 40 112 . . 195 . 239 136 9 . 356 . 20 . 38 455 . 472 . 18 20 72 327 Absorbed by Shields 1247 | . . . . . . . . . . . . . 59 . 253 . . . . 126 . 111 . 104 . . 594 Reduced by Siege Mode 84 | . . . . . . . . . . . . . . . . . . . . . . . . . . . 84 Redirected to Shielding 235 | . . . . 20 68 28 . . . . . . . . . . 12 19 76 12 . . . . . . . Ignored by Resistances 946 | . . . . . . . . . . . 128 . . . . . . . . . . 232 . . . . 586 Regen/Repaired (Parts) 1246 | . . . . . 75 . . . . . . 185 . . 31 . . . . . . 164 36 154 196 88 317 Core Remaining (%) 64 | 100 . . . 5 . 72 . . . . 38 84 . . . 63 . . . . . 14 . 98 98 . 75 Volleys Fired 719 | 5 85 4 . 32 27 79 4 . 27 . 46 38 29 . 29 11 8 . 4 103 12 77 . 21 20 20 38 Largest 5 | 2 2 2 . 2 1 4 4 . 4 . 4 4 4 . 4 4 3 . 4 4 3 4 . 5 5 4 5 Hottest 507 | 40 90 90 . 90 60 294 234 . 239 . 227 103 178 . 174 168 155 . 203 278 185 410 . 344 344 235 507 Shots Fired 1801 | 10 167 7 . 59 28 148 10 . 70 . 87 105 79 . 99 37 19 . 14 261 30 205 . 97 82 47 140 Gun 1176 | 10 167 7 . 58 28 53 2 . 16 . 46 92 54 . 62 29 17 . 6 164 30 154 . 80 39 21 41 Cannon 557 | . . . . 1 . 69 8 . 47 . 41 13 15 . 28 8 2 . 8 96 . 49 . 17 43 21 91 Launcher 44 | . . . . . . 5 . . 7 . . . 10 . 9 . . . . . . . . . . 5 8 Special 24 | . . . . . . 21 . . . . . . . . . . . . . 1 . 2 . . . . . Kinetic 1025 | 10 117 . . 1 28 51 6 . 32 . 74 90 45 . 66 27 17 . 10 185 12 75 . 42 40 29 68 Thermal 642 | . 50 7 . 58 . 84 2 . 31 . 13 15 24 . 19 . . . . 49 18 125 . 55 26 13 53 Explosive 28 | . . . . . . 5 . . 7 . . . 1 . 2 . . . . . . . . . . 5 8 Electromagnetic 101 | . . . . . . 8 2 . . . . . 9 . 7 10 2 . 4 27 . 5 . . 16 . 11 Entropic 5 | . . . . . . . . . . . . . . . 5 . . . . . . . . . . . . Robot Hit Streak 25 | 4 10 2 . 6 11 10 6 . 9 . 10 9 15 . 16 8 7 . 8 17 10 15 . 20 25 13 20 Robot Miss Streak 12 | 2 4 3 . 6 5 8 3 . 4 . 12 3 3 . 3 3 2 . 2 5 1 5 . 4 2 2 7 Penetration Max 2 | . . . . . . . . . . . . . . . . . . . . 1 . 1 . . 2 1 2 Secondary Targets 9 | . 3 . . 1 . . . . . . . . . . . . . . . . . 4 . 1 . . . Max Gunslinging Chain 1 | . 1 . . 1 . . . . . . . . . . . . . . . . . 1 . 1 . . . Shots Hit Robots 1070 | 5 97 3 . 31 25 74 5 . 41 . 65 45 43 . 63 20 15 . 10 153 23 124 . 54 60 29 85 Core Hits 675 | 4 30 3 . 16 28 56 5 . 40 . 54 17 30 . 46 14 9 . 7 84 8 62 . 25 33 27 77 Critical Kills 15 | . 1 . . . . . . . . . . . . . . . . . 1 4 . 1 . . 2 3 3 Critical Parts Destroyed 14 | . 2 . . . . . . . . . . 1 . . 1 . . . . 7 . 1 . 1 . . 1 Critical Strikes 66 | . 7 . . . . 4 . . 3 . 1 2 1 . 2 . . . 1 17 1 11 . 1 2 3 10 Burn 21 | . 4 . . . . 4 . . 2 . . 1 1 . . . . . . 2 1 6 . . . . . Meltdown 6 | . . . . . . . . . . . . . . . . . . . . . . 1 . . 1 1 3 Destroy 22 | . 3 . . . . . . . . . . . . . . . . . 1 11 . 1 . 1 1 2 2 Blast 12 | . . . . . . . . . 1 . 1 . . . 1 . . . . 3 . 3 . . . . 3 Corrupt 3 | . . . . . . . . . . . . . . . . . . . . 1 . . . . . . 2 Smash 1 | . . . . . . . . . . . . 1 . . . . . . . . . . . . . . . Detonate 1 | . . . . . . . . . . . . . . . 1 . . . . . . . . . . . . Melee Attacks 32 | . . . . . . . . . . . . 16 7 . . . . . . 6 . . 3 . . . . Impact 32 | . . . . . . . . . . . . 16 7 . . . . . . 6 . . 3 . . . . Slashing . | . . . . . . . . . . . . . . . . . . . . . . . . . . . . Piercing . | . . . . . . . . . . . . . . . . . . . . . . . . . . . . Sneak Attacks 2 | . . . . . . . . . . . . 2 . . . . . . . . . . . . . . . Combat Hostiles . | . . . . . . . . . . . . . . . . . . . . . . . . . . . . Follow-up Attacks . | . . . . . . . . . . . . . . . . . . . . . . . . . . . . Damage Inflicted 36716 | 58 1250 49 . 372 1395 2279 150 . 1902 . 2188 1169 1710 . 3010 511 356 . 323 4026 661 3415 . 1350 2290 1862 6390 Guns 17084 | 58 1243 37 . 366 1363 1017 21 . 235 . 1441 729 705 . 955 343 318 . 86 2128 488 2282 . 1019 1031 426 793 Cannons 11463 | . . . . 6 . 875 114 . 831 . 747 144 286 . 540 118 38 . 184 1898 . 1109 . 331 1259 553 2430 Explosions 7735 | . . . . . . 339 . . 836 . . . 719 . 1515 50 . . 53 . 173 . . . . 883 3167 Melee 285 | . . . . . . . . . . . . 285 . . . . . . . . . . . . . . . Ramming 101 | . 7 12 . . 32 . 15 . . . . 11 . . . . . . . . . 24 . . . . . Kinetic 17127 | 58 846 . . 6 1363 1014 77 . 619 . 1998 710 568 . 975 268 318 . 165 3061 177 1246 . 425 1099 693 1441 Thermal 10761 | . 397 37 . 366 . 865 21 . 447 . 190 163 455 . 777 50 . . 53 842 484 2057 . 925 774 286 1572 Explosive 5788 | . . . . . . 339 . . 836 . . . 210 . 353 . . . . . . . . . . 883 3167 Electromagnetic 2493 | . . . . . . 61 37 . . . . . 477 . 744 193 38 . 105 123 . 88 . . 417 . 210 Impact 285 | . . . . . . . . . . . . 285 . . . . . . . . . . . . . . . Slashing . | . . . . . . . . . . . . . . . . . . . . . . . . . . . . Piercing . | . . . . . . . . . . . . . . . . . . . . . . . . . . . . Entropic 161 | . . . . . . . . . . . . . . . 161 . . . . . . . . . . . . Highest Corruption 36 | . . . . 9 2 6 . . . . . 13 2 2 24 36 1 1 1 25 25 32 . . . . 3 Average Corruption 12 | . . . . 2 2 5 . . . . . 11 1 2 10 34 1 1 1 11 25 26 . . . . 2 Corruption Purged . | . . . . . . . . . . . . . . . . . . . . . . . . . . . . Corruption Blocked . | . . . . . . . . . . . . . . . . . . . . . . . . . . . . Effects 289 | . . . . 5 8 36 . . . . . 16 3 4 7 50 2 2 3 39 17 81 . . . . 16 Message Errors 75 | . . . . . 4 7 . . . . . 5 1 1 3 11 1 . . 11 4 23 . . . . 4 Matter Fused 60 | . . . . 1 1 12 . . . . . 5 . 2 . 11 . 1 . 3 5 15 . . . . 4 Heat Flow Errors 36 | . . . . 1 1 5 . . . . . 2 1 . 1 4 . . 1 6 3 10 . . . . 1 Energy Discharges 25 | . . . . 1 . 2 . . . . . . . 1 . 9 . . 1 1 . 8 . . . . 2 Parts Rejected 3 | . . . . . . 1 . . . . . . . . . . . 1 . 1 . . . . . . . Parts Fused 4 | . . . . . . 1 . . . . . . . . . 2 . . . . . . . . . . 1 Data Loss (minor) 26 | . . . . . 1 2 . . . . . 1 . . 1 2 . . 1 7 4 4 . . . . 3 Data Loss (major) 16 | . . . . . . . . . . . . 1 . . . 4 1 . . 5 1 3 . . . . 1 Misfires 14 | . . . . 1 1 3 . . . . . 1 1 . 1 2 . . . 1 . 3 . . . . . Alerts 9 | . . . . 1 . 3 . . . . . . . . . 3 . . . . . 2 . . . . . Misdirections 1 | . . . . . . . . . . . . . . . . . . . . . . 1 . . . . . Weapon Failures 20 | . . . . . . . . . . . . 1 . . 1 2 . . . 4 . 12 . . . . . Overload Shots 1 | . . . . . . . . . . . . . . . . . . . . . . 1 . . . . . Overflow Damage 530 | . . . . . . 2 16 . 85 . . 175 32 . 82 . 21 . . . 46 4 . . . . 67 Projectiles 106 | . . . . . . 2 16 . 28 . . 21 23 . 5 . . . . . . . . . . . 11 Explosions 266 | . . . . . . . . . 57 . . . 9 . 77 . 21 . . . 46 . . . . . 56 Melee 158 | . . . . . . . . . . . . 154 . . . . . . . . . 4 . . . . . Knockbacks 35 | . 1 . . . 1 2 1 . 3 . 4 2 . . 1 3 . . 2 4 . 7 . . . 2 2 Impact 3 | . 1 . . . 1 . . . . . . 1 . . . . . . . . . . . . . . . Kinetic 30 | . . . . . . 2 1 . 3 . 4 1 . . . 3 . . 2 4 . 6 . . . 2 2 Secondary 2 | . . . . . . . . . . . . . . . 1 . . . . . . 1 . . . . . Self-Inflicted Damage 455 | . . . . . . 33 . . 50 . . 5 . . 132 . 77 . 27 . . . . . . . 131 Shots 14 | . . . . . . 1 . . 3 . . . . . 5 . 1 . 1 . . . . . . . 3 Rammed 8 | . 3 2 . . 1 . 1 . . . . 1 . . . . . . . . . . . . . . . Targets Rammed 13 | . 3 2 . . 4 . 1 . . . . 1 . . . . . . . . 1 1 . . . . . Kicked 3 | . . . . . 1 . . . . . . . . . . . . . . . 1 1 . . . . . Crushed 2 | . . . . . 2 . . . . . . . . . . . . . . . . . . . . . . Highest Temperature 574 | . 188 86 . 240 342 343 93 . 387 . 574 192 412 . 216 233 36 . 158 466 149 206 . 250 405 304 300 Average Temperature 105 | . 42 36 . 84 85 79 51 . 151 . 191 58 131 . 69 77 27 . 80 120 77 74 . 101 154 140 92 Received Heat Transfer 3374 | . 222 . . 24 117 396 . . 213 . 929 . . . 12 . . . . 529 . 520 . 148 99 27 138 Effects 23 | . . . . . . . . . . . 9 . 3 . . . . . . 7 . . . . 4 . . Shutdowns 7 | . . . . . . . . . . . 3 . 1 . . . . . . 3 . . . . . . . Energy Bleed 2 | . . . . . . . . . . . 1 . . . . . . . . 1 . . . . . . . Interference 10 | . . . . . . . . . . . 3 . 1 . . . . . . 3 . . . . 3 . . Short Circuit 3 | . . . . . . . . . . . 1 . 1 . . . . . . . . . . . 1 . . Damage (core) 1 | . . . . . . . . . . . 1 . . . . . . . . . . . . . . . . Siege Activations 2 | . . . . . . . . . . . . . . . . . . . . . . . . 1 . . 1 Total Turns 36 | . . . . . . . . . . . . . . . . . . . . . . . . 10 . . 26 Longest Duration 26 | . . . . . . . . . . . . . . . . . . . . . . . . 10 . . 26 Martial Activations . | . . . . . . . . . . . . . . . . . . . . . . . . . . . . Shielding Activations . | . . . . . . . . . . . . . . . . . . . . . . . . . . . . Robots Disrupted 1 | . . . . . . . . . . . . . . . . . . . . . . . . . 1 . . Combat Hostiles 1 | . . . . . . . . . . . . . . . . . . . . . . . . . 1 . . Robots Corrupted 3 | . . . . . . . . . . . . 1 . . 1 . . . . . . 1 . . . . . Combat Hostiles 1 | . . . . . . . . . . . . . . . 1 . . . . . . . . . . . . Parts Fried 7 | . . . . . . . . . . . . 1 3 . . . . . 1 . . 1 . . . . 1 Impact Corruptions 4 | . . . . . . . . . . . . 3 . . . . . . . . . 1 . . . . . Robots Melted 11 | . 1 . . . . . . . . . . . . . . . . . . 1 . 3 . . 2 1 3 Combat Hostiles 9 | . 1 . . . . . . . . . . . . . . . . . . 1 . 2 . . 2 1 2 Parts Melted 30 | . . 1 . . . 7 . . . . . . . . 1 . . . . 4 3 11 . . . . 3 Heat Transferred 18773 | . 1407 87 . 967 . 1962 50 . 1111 . 385 407 666 . 993 50 . . 50 1497 900 4477 . 1184 851 296 1433 Parts Sabotaged 2 | . . . . . . . . . . . . . . . 2 . . . . . . . . . . . . Parts Stolen . | . . . . . . . . . . . . . . . . . . . . . . . . . . . . Parts Stripped . | . . . . . . . . . . . . . . . . . . . . . . . . . . . . Power Chain Reactions 6 | . . . . . . . . . . . . . 1 . 3 1 . . 1 . . . . . . . . Alert | -11 -10 -10 -10 -9 -8 -8 -7 -7 -7 -7 -6 -6 -5 -5 -5 -4 -4 -4 -4 -4 -4 -4 -3 -3 -2 -1 -1 ------- Run | Yrd Mat Min Exi Min Mat Gar Fac Low Low Dat Pro Fac Fac Upp War Pro Fac Was Fac Gar Fac Ext Res DSF Res Acc Com Maximum Alert Level 4 | . . . . . . 4 2 . . . . 2 . . . . 2 . . 2 2 1 . 1 . 1 4 Low Security (%) 67 | 100 100 100 . 100 100 7 . . . . . 8 100 . . . 7 100 100 39 . 33 100 87 100 51 82 Level 1 14 | . . . . . . 3 4 . . . . 38 . . . . 37 . . 22 82 66 . 12 . 48 12 Level 2 14 | . . . . . . 42 95 . . . . 53 . . . . 55 . . 38 17 . . . . . 1 Level 3 2 | . . . . . . 37 . . . . . . . . . . . . . . . . . . . . 1 Level 4 . | . . . . . . 8 . . . . . . . . . . . . . . . . . . . . 1 Level 5 . | . . . . . . . . . . . . . . . . . . . . . . . . . . . . High Security . | . . . . . . . . . . . . . . . . . . . . . . . . . . . . Max Security . | . . . . . . . . . . . . . . . . . . . . . . . . . . . . Sterilizations 1 | . . . . . . . . . . . . . . . . . . . . . . . . 1 . . . Peak Influence 1358 | 5 145 30 . 74 104 1246 657 . . . . 685 151 . . . 600 93 32 661 429 375 107 264 176 270 1358 Initial 653 | . . 30 . . . 50 653 . . . . 462 91 . . . 600 93 9 . 346 165 107 45 148 . 147 Average 185 | 1 31 2 . 6 46 660 504 . . . . 416 46 . . . 414 50 4 312 347 217 84 133 46 138 189 Influence Increases 10904 | 15 477 46 . 111 459 1226 62 . 375 . 360 822 355 . 733 145 751 . 65 941 182 838 4 229 289 378 2041 Destroy 0b10 Robot/C 4980 | . 280 40 . 80 220 580 . . 340 . 300 40 200 . 580 120 40 . 40 500 . 500 . 180 160 220 560 Destroy 0b10 Robot/NC 355 | 15 35 . . . 55 5 15 . . . 10 30 50 . 10 5 10 . 5 10 30 55 . . 5 5 5 Destroy Leader 608 | . 58 . . 20 80 20 2 . 20 . 50 20 36 . . 20 22 . 10 40 4 34 . 30 40 42 60 Allied During Kill 293 | . . 6 . 6 . 28 . . . . . . . . 143 . . . . . . 110 . . . . . Successful Hack 129 | . 11 . . 5 11 28 14 . . . . 12 . . . . 4 . . . 12 32 . . . . . Disable Machine 375 | . . . . . 30 30 30 . . . . 75 15 . . . 15 . . 15 90 15 . 15 . 15 30 Anti-Garrison Action 850 | . . . . . . 400 . . . . . 150 . . . . . . . 300 . . . . . . . Destroy Structure 959 | . 3 . . . 33 90 1 . . . . 45 24 . . . 60 . 10 61 46 62 4 4 9 96 411 Advance Influence 1050 | . . . . . . . . . . . . 450 . . . . 600 . . . . . . . . . . Lose Combat Pursuer 1305 | . 90 . . . 30 45 . . 15 . . . 30 . . . . . . 15 . 30 . . 75 . 975 Influence Decreases 9546 | 15 398 117 8 111 382 57 919 335 265 164 339 655 423 120 292 586 484 254 78 280 505 971 148 26 553 148 913 Entered New Map 2568 | . . 49 8 . . 27 593 145 11 164 . 9 97 45 . 441 . 174 4 . 315 173 98 16 116 . 83 Time Decay 5149 | 15 385 58 . 111 382 . 326 190 234 . 273 386 306 75 52 135 214 50 54 . 190 498 50 . 437 148 580 Search Patrol Dispatched 300 | . . . . . . . . . . . . 200 . . . . 100 . . . . . . . . . . Lost Part 1139 | . 13 10 . . . 10 . . 20 . 66 60 20 . 140 10 20 30 20 280 . 180 . 10 . . 250 Lost Ally 240 | . . . . . . 20 . . . . . . . . 100 . . . . . . 120 . . . . . Purge Threat 150 | . . . . . . . . . . . . . . . . . 150 . . . . . . . . . . Squads Dispatched 34 | . 1 1 . 1 1 . 2 . . . . 6 3 . . . . . 1 . 1 2 1 1 . 4 9 Investigation 4 | . . 1 . 1 . . . . . . . 1 . . . . . . . . . . . . . . 1 Extermination 10 | . . . . . . . 1 . . . . 1 2 . . . . . . . . . . . . 1 5 Reinforcement 14 | . 1 . . . 1 . 1 . . . . 1 1 . . . . . 1 . 1 2 1 1 . . 3 Assault 2 | . . . . . . . . . . . . 2 . . . . . . . . . . . . . . . Garrison 4 | . . . . . . . . . . . . 1 . . . . . . . . . . . . . 3 . Intercept . | . . . . . . . . . . . . . . . . . . . . . . . . . . . . Searches Triggered 3 | . . . . . . . . . . . . 2 . . . . 1 . . . . . . . . . . Construction Impeded 2 | . . . . . . . . . . . . . 1 . . . . . . . . 1 . . . . . Haulers Reinforced . | . . . . . . . . . . . . . . . . . . . . . . . . . . . . Active Scanning Responses . | . . . . . . . . . . . . . . . . . . . . . . . . . . . . Cargo Convoy Interrupts . | . . . . . . . . . . . . . . . . . . . . . . . . . . . . Stealth | -11 -10 -10 -10 -9 -8 -8 -7 -7 -7 -7 -6 -6 -5 -5 -5 -4 -4 -4 -4 -4 -4 -4 -3 -3 -2 -1 -1 --------- Run | Yrd Mat Min Exi Min Mat Gar Fac Low Low Dat Pro Fac Fac Upp War Pro Fac Was Fac Gar Fac Ext Res DSF Res Acc Com Distress Signals 22 | . 2 . . 1 3 1 . . . . . . 1 . . . . . . . . . 1 . 7 2 4 Communications Jammed . | . . . . . . . . . . . . . . . . . . . . . . . . . . . . Distress Signals . | . . . . . . . . . . . . . . . . . . . . . . . . . . . . Times Spotted 468 | . 28 2 . 16 20 30 3 . 19 . 18 11 14 . 57 11 5 5 2 27 3 34 . 12 28 14 109 Peak Tracking Total 102 | . 4 1 . 3 4 4 1 . 7 . 4 7 5 . 19 4 2 5 2 4 2 11 7 3 7 4 102 Tactical Retreats 25 | . 5 . . 4 2 2 . . 1 . . . 1 . . . . . . 1 . 2 . . 3 . 4 Traps | -11 -10 -10 -10 -9 -8 -8 -7 -7 -7 -7 -6 -6 -5 -5 -5 -4 -4 -4 -4 -4 -4 -4 -3 -3 -2 -1 -1 ------- Run | Yrd Mat Min Exi Min Mat Gar Fac Low Low Dat Pro Fac Fac Upp War Pro Fac Was Fac Gar Fac Ext Res DSF Res Acc Com Traps Triggered 17 | . . . . . 1 2 . . . . . . . . . . 1 . 3 7 1 . . 2 . . . Indirectly . | . . . . . . . . . . . . . . . . . . . . . . . . . . . . Trap Hack Attempts . | . . . . . . . . . . . . . . . . . . . . . . . . . . . . Triggered . | . . . . . . . . . . . . . . . . . . . . . . . . . . . . Disarmed . | . . . . . . . . . . . . . . . . . . . . . . . . . . . . Reprogrammed . | . . . . . . . . . . . . . . . . . . . . . . . . . . . . Reused . | . . . . . . . . . . . . . . . . . . . . . . . . . . . . Traps Extracted . | . . . . . . . . . . . . . . . . . . . . . . . . . . . . Installed . | . . . . . . . . . . . . . . . . . . . . . . . . . . . . Triggered . | . . . . . . . . . . . . . . . . . . . . . . . . . . . . Machines | -11 -10 -10 -10 -9 -8 -8 -7 -7 -7 -7 -6 -6 -5 -5 -5 -4 -4 -4 -4 -4 -4 -4 -3 -3 -2 -1 -1 ---------- Run | Yrd Mat Min Exi Min Mat Gar Fac Low Low Dat Pro Fac Fac Upp War Pro Fac Was Fac Gar Fac Ext Res DSF Res Acc Com Machines Disabled 45 | . 1 . . . 2 9 2 . 5 . . 6 1 . 1 . 1 . . 4 6 3 . 1 . 1 2 Max in Single Turn 6 | . 1 . . . 1 3 1 . 3 . . 5 1 . 1 . 1 . . 1 6 1 . 1 . 1 1 Garrison Access 3 | . . . . . . . . . . . . 1 . . . . . . . . . . . . 2 . . Garrison Relay 10 | . . . . . . 6 . . . . . . . . . . . . . 4 . . . . . . . Phase Generator 1 | . . . . . . . . . . . . . . . . . . . . . . . . . . . 1 Machines Repaired . | . . . . . . . . . . . . . . . . . . . . . . . . . . . . Machines Dismantled . | . . . . . . . . . . . . . . . . . . . . . . . . . . . . Machines Sabotaged . | . . . . . . . . . . . . . . . . . . . . . . . . . . . . Overloaded Fab Kills . | . . . . . . . . . . . . . . . . . . . . . . . . . . . . Hacking | -11 -10 -10 -10 -9 -8 -8 -7 -7 -7 -7 -6 -6 -5 -5 -5 -4 -4 -4 -4 -4 -4 -4 -3 -3 -2 -1 -1 --------- Run | Yrd Mat Min Exi Min Mat Gar Fac Low Low Dat Pro Fac Fac Upp War Pro Fac Was Fac Gar Fac Ext Res DSF Res Acc Com Machines Accessed 60 | . 5 1 2 1 8 2 1 . . 4 . 3 4 . 4 1 5 . 3 2 4 4 2 . 1 . 3 Terminals 31 | . 4 . . 1 4 2 1 . . . . 2 2 . . 1 3 . 2 2 . 4 2 . . . 1 Fabricators 2 | . . . . . . . . . . . . . 1 . . . . . . . 1 . . . . . . Repair Stations 1 | . . . . . 1 . . . . . . . . . . . . . . . . . . . . . . Recycling Units 8 | . 1 . . . 2 . . . . . . . . . . . 1 . . . 2 . . . . . 2 Scanalyzers 2 | . . . . . . . . . . . . 1 . . . . . . . . 1 . . . . . . Garrison Access 5 | . . . . . 1 . . . . . . . 1 . . . 1 . 1 . . . . . 1 . . Total Hacks 140 | . 12 1 13 3 16 3 2 . . 32 . 8 7 . 8 1 12 . 3 3 5 5 2 . 1 . 3 Successful 86 | . 5 1 13 1 10 2 1 . . 32 . 1 1 . 8 1 4 . 1 . 1 2 1 . 1 . . Failed 54 | . 7 . . 2 6 1 1 . . . . 7 6 . . . 8 . 2 3 4 3 1 . . . 3 Catastrophic 17 | . 3 . . . . . . . . . . 3 2 . . . 1 . 2 . 2 1 1 . . . 2 Database Lockouts . | . . . . . . . . . . . . . . . . . . . . . . . . . . . . Manual 32 | . 5 . 1 . 5 . 1 . . . . 2 3 . 1 . 8 . . . . 2 1 . . . 3 Terminals 59 | . 10 . . 3 9 3 2 . . . . 5 4 . . 1 9 . 2 3 . 5 2 . . . 1 Fabricators 3 | . . . . . . . . . . . . . 2 . . . . . . . 1 . . . . . . Repair Stations 3 | . . . . . 3 . . . . . . . . . . . . . . . . . . . . . . Recycling Units 10 | . 2 . . . 3 . . . . . . . . . . . 1 . . . 2 . . . . . 2 Scanalyzers 5 | . . . . . . . . . . . . 3 . . . . . . . . 2 . . . . . . Garrison Access 6 | . . . . . 1 . . . . . . . 1 . . . 2 . 1 . . . . . 1 . . Terminal Hacks 71 | . 5 1 13 1 4 2 . . . 32 . . . . 8 1 2 . . . . 1 1 . . . . Record 31 | . . . 12 . . . . . . 11 . . . . 7 1 . . . . . . . . . . . Part Schematic 12 | . . . . . . . . . . 12 . . . . . . . . . . . . . . . . . Robot Schematic 6 | . . . . . . . . . . 6 . . . . . . . . . . . . . . . . . Robot Analysis 4 | . 4 . . . . . . . . . . . . . . . . . . . . . . . . . . Prototype ID Bank 4 | . . . . . 1 . . . . 3 . . . . . . . . . . . . . . . . . Open Door 2 | . . 1 . . . . . . . . . . . . 1 . . . . . . . . . . . . Open DSF 1 | . . . . . . . . . . . . . . . . . . . . . . . 1 . . . . Branch Access Points 1 | . 1 . . . . . . . . . . . . . . . . . . . . . . . . . . Emergency Access Points 2 | . . . . . 1 1 . . . . . . . . . . . . . . . . . . . . . Unreport Threat 1 | . . . . . . . . . . . . . . . . . 1 . . . . . . . . . . Locate Traps 1 | . . . . . 1 . . . . . . . . . . . . . . . . . . . . . . Zone Layout 4 | . . . . 1 1 . . . . . . . . . . . 1 . . . . 1 . . . . . Garrison Registry 1 | . . . . . . 1 . . . . . . . . . . . . . . . . . . . . . Proto ID Catalog 1 | . . . 1 . . . . . . . . . . . . . . . . . . . . . . . . Fabricator Hacks . | . . . . . . . . . . . . . . . . . . . . . . . . . . . . Repair Station Hacks 2 | . . . . . 2 . . . . . . . . . . . . . . . . . . . . . . Scan Component 1 | . . . . . 1 . . . . . . . . . . . . . . . . . . . . . . Repair 1 | . . . . . 1 . . . . . . . . . . . . . . . . . . . . . . Recycling Unit Hacks 2 | . . . . . 2 . . . . . . . . . . . . . . . . . . . . . . Retrieve Components 2 | . . . . . 2 . . . . . . . . . . . . . . . . . . . . . . Scanalyzer 2 | . . . . . . . . . . . . 1 . . . . . . . . 1 . . . . . . Retrieve Study 2 | . . . . . . . . . . . . 1 . . . . . . . . 1 . . . . . . Garrison Access Hacks 3 | . . . . . 1 . . . . . . . . . . . . . 1 . . . . . 1 . . Unlock Access 2 | . . . . . 1 . . . . . . . . . . . . . 1 . . . . . . . . Seal Access 1 | . . . . . . . . . . . . . . . . . . . . . . . . . 1 . . Unauthorized Hacks 6 | . . . . . 1 . 1 . . . . . 1 . . . 2 . . . . 1 . . . . . Terminals 6 | . . . . . 1 . 1 . . . . . 1 . . . 2 . . . . 1 . . . . . Botnet 6 | . . . . . 1 . 1 . . . . . 1 . . . 2 . . . . 1 . . . . . Fabricators . | . . . . . . . . . . . . . . . . . . . . . . . . . . . . Repair Stations . | . . . . . . . . . . . . . . . . . . . . . . . . . . . . Recycling Units . | . . . . . . . . . . . . . . . . . . . . . . . . . . . . Scanalyzers . | . . . . . . . . . . . . . . . . . . . . . . . . . . . . Garrison Access . | . . . . . . . . . . . . . . . . . . . . . . . . . . . . Data Cores Recovered 1 | . . . . . . . 1 . . . . . . . . . . . . . . . . . . . . Used . | . . . . . . . . . . . . . . . . . . . . . . . . . . . . Hacking Detections 44 | . 5 . . 1 7 2 1 . . . . 3 4 . . 1 5 . 2 2 4 2 2 . . . 3 Full Trace Events 3 | . . . . 1 . . . . . . . 1 . . . . . . . 1 . . . . . . . Feedback Events 2 | . . . . . . . . . . . . 1 . . . . . . . 1 . . . . . . . Corruption 2 | . . . . . . . . . . . . 1 . . . . . . . 1 . . . . . . . Feedback Blocked . | . . . . . . . . . . . . . . . . . . . . . . . . . . . . Robot Schematics Acquired 6 | . . . . . . . . . . 6 . . . . . . . . . . . . . . . . . Robots Built . | . . . . . . . . . . . . . . . . . . . . . . . . . . . . Authchips . | . . . . . . . . . . . . . . . . . . . . . . . . . . . . Time . | . . . . . . . . . . . . . . . . . . . . . . . . . . . . Total Robot Build Rating . | . . . . . . . . . . . . . . . . . . . . . . . . . . . . Part Schematics Acquired 12 | . . . . . . . . . . 12 . . . . . . . . . . . . . . . . . Parts Built . | . . . . . . . . . . . . . . . . . . . . . . . . . . . . Authchips . | . . . . . . . . . . . . . . . . . . . . . . . . . . . . Time . | . . . . . . . . . . . . . . . . . . . . . . . . . . . . Total Part Build Rating . | . . . . . . . . . . . . . . . . . . . . . . . . . . . . Part Studies Acquired 2 | . . . . . . . . . . . . 1 . . . . . . . . 1 . . . . . . Parts Repaired 1 | . . . . . 1 . . . . . . . . . . . . . . . . . . . . . . Time 38 | . . . . . 38 . . . . . . . . . . . . . . . . . . . . . . Parts Recycled . | . . . . . . . . . . . . . . . . . . . . . . . . . . . . Recycled Matter . | . . . . . . . . . . . . . . . . . . . . . . . . . . . . Retrieved Matter . | . . . . . . . . . . . . . . . . . . . . . . . . . . . . Retrieved Components 11 | . . . . . 11 . . . . . . . . . . . . . . . . . . . . . . Parts Scanalyzed . | . . . . . . . . . . . . . . . . . . . . . . . . . . . . Part Schematics Acquired . | . . . . . . . . . . . . . . . . . . . . . . . . . . . . Parts Damaged . | . . . . . . . . . . . . . . . . . . . . . . . . . . . . Bothacking | -11 -10 -10 -10 -9 -8 -8 -7 -7 -7 -7 -6 -6 -5 -5 -5 -4 -4 -4 -4 -4 -4 -4 -3 -3 -2 -1 -1 ------------ Run | Yrd Mat Min Exi Min Mat Gar Fac Low Low Dat Pro Fac Fac Upp War Pro Fac Was Fac Gar Fac Ext Res DSF Res Acc Com Used RIF Installer . | . . . . . . . . . . . . . . . . . . . . . . . . . . . . Robots Hacked . | . . . . . . . . . . . . . . . . . . . . . . . . . . . . Non-combat . | . . . . . . . . . . . . . . . . . . . . . . . . . . . . Combat . | . . . . . . . . . . . . . . . . . . . . . . . . . . . . Robot Hacks Applied . | . . . . . . . . . . . . . . . . . . . . . . . . . . . . Relay Couplers Released 49 | . . . . . . 28 . . . . . 1 . . . . . . . 19 . . . . 1 . . Machine Destruction 49 | . . . . . . 28 . . . . . 1 . . . . . . . 19 . . . . 1 . . Fabnet Peak Effective % . | . . . . . . . . . . . . . . . . . . . . . . . . . . . . Robots Rewired 11 | . . . . . . 3 . . . . . . . . 5 . . . . . . 3 . . . . . Allies Hacked . | . . . . . . . . . . . . . . . . . . . . . . . . . . . . Hacks Repelled . | . . . . . . . . . . . . . . . . . . . . . . . . . . . . Allies | -11 -10 -10 -10 -9 -8 -8 -7 -7 -7 -7 -6 -6 -5 -5 -5 -4 -4 -4 -4 -4 -4 -4 -3 -3 -2 -1 -1 -------- Run | Yrd Mat Min Exi Min Mat Gar Fac Low Low Dat Pro Fac Fac Upp War Pro Fac Was Fac Gar Fac Ext Res DSF Res Acc Com Total Allies 17 | . . 3 . . . 3 . . . . . . . . 5 . . . . . . 6 . . . . . Largest Group 6 | . . 3 3 1 . 3 . . . . . . . . 5 . . . . . . 6 . . . . . Highest-Rated Group 378 | . . 40 40 16 . 63 . . . . . . . . 244 . . . . . . 378 . . . . . Highest-Rated Ally 159 | . . 16 16 16 . 21 . . . . . . . . 68 . . . . . . 159 . . . . . Initial Warlord ECA Mod 21 | . . . . . . . 9 9 9 9 8 8 6 6 6 5 5 5 5 5 13 13 12 12 21 20 20 Warlord Squad Rendezvous 1 | . . . . . . . . . . . . 1 . . . . . . . . . . . . . . . Dakka 1 | . . . . . . . . . . . . 1 . . . . . . . . . . . . . . . Total Orders . | . . . . . . . . . . . . . . . . . . . . . . . . . . . . Ally Attacks 168 | . . . . 28 . 19 . . . . . . . . 64 . . . . . . 57 . . . . . Total Damage 5106 | . . . . 302 . 449 . . . . . . . . 2805 . . . . . . 1550 . . . . . Kills 29 | . . . . 5 . 4 . . . . . . . . 16 . . . . . . 4 . . . . . Allies Corrupted . | . . . . . . . . . . . . . . . . . . . . . . . . . . . . Allies Melted 2 | . . . . . . . . . . . . . . . . . . . . . . . . . 2 . . Intel | -11 -10 -10 -10 -9 -8 -8 -7 -7 -7 -7 -6 -6 -5 -5 -5 -4 -4 -4 -4 -4 -4 -4 -3 -3 -2 -1 -1 ------- Run | Yrd Mat Min Exi Min Mat Gar Fac Low Low Dat Pro Fac Fac Upp War Pro Fac Was Fac Gar Fac Ext Res DSF Res Acc Com Active Infowar (turns) 11057 | 16 1817 1148 . . . . 77 . . . 558 66 626 170 11 921 453 104 413 1219 386 1327 113 316 316 507 493 Optics 3514 | . . . . . . . . . . . . . . . . . . . 155 1219 386 1327 113 314 . . . Sensors 1124 | . . . . . . . . . . . . . 1 170 . 921 32 . . . . . . . . . . Terrain 5858 | . . . . . . . 77 . . . 558 66 626 170 11 920 453 104 413 425 386 485 113 316 314 420 1 Seismic 2982 | 16 1817 1148 . . . . . . . . . . . . . 1 . . . . . . . . . . . Jamming 1000 | . . . . . . . . . . . . . . . . . . . . . . . . 2 1 504 493 ECM 1 | . . . . . . . . . . . . . . . . . . . . . . . . . 1 . . Robot Analysis Total 4 | . 4 . . . . . . . . . . . . . . . . . . . . . . . . . . Derelict Logs Recovered 6 | . . 1 . . . . . 1 1 . 1 . . 2 . . . . . . . . . . . . . Drone Launches . | . . . . . . . . . . . . . . . . . . . . . . . . . . . . Drone Recoveries . | . . . . . . . . . . . . . . . . . . . . . . . . . . . . Exploration | -11 -10 -10 -10 -9 -8 -8 -7 -7 -7 -7 -6 -6 -5 -5 -5 -4 -4 -4 -4 -4 -4 -4 -3 -3 -2 -1 -1 ------------- Run | Yrd Mat Min Exi Min Mat Gar Fac Low Low Dat Pro Fac Fac Upp War Pro Fac Was Fac Gar Fac Ext Res DSF Res Acc Com Turns Passed 24585 | 95 1891 1201 802 1115 1126 1269 729 382 807 142 2267 903 964 170 1334 924 453 104 413 1219 386 1327 113 376 1775 508 1790 Spaces Moved 10990 | 43 492 373 256 269 480 559 301 217 426 86 476 300 557 107 705 464 218 85 216 661 267 814 82 170 1030 273 1063 Core 129 | 7 . . . . 1 . . . . . 74 32 . . . . . . . 1 . . . . . . 14 Treads 7248 | 36 492 373 256 239 359 559 301 217 426 86 402 . 216 107 672 . 16 . 80 . . . . 123 1030 273 985 Legs 2225 | . . . . . 120 . . . . . . . . . 33 464 184 . . 214 267 814 82 47 . . . Wheels 1289 | . . . . 30 . . . . . . . 233 341 . . . 18 85 136 446 . . . . . . . Hover 99 | . . . . . . . . . . . . 35 . . . . . . . . . . . . . . 64 Flight . | . . . . . . . . . . . . . . . . . . . . . . . . . . . . Fastest Speed 50 | 50 160 312 312 215 170 170 170 170 167 167 166 125 110 160 113 185 150 110 110 90 120 120 117 110 145 161 50 Average Speed 189 | 151 318 312 312 329 179 170 232 170 167 167 435 243 141 160 161 185 185 115 169 114 120 120 119 143 156 161 146 Slowest Speed 1250 | 160 320 320 312 465 1050 170 250 170 170 167 1250 1250 240 160 400 185 232 130 240 500 120 190 120 225 161 161 225 Overloaded Moves . | . . . . . . . . . . . . . . . . . . . . . . . . . . . . Propulsion Burnouts . | . . . . . . . . . . . . . . . . . . . . . . . . . . . . Robots Hopped . | . . . . . . . . . . . . . . . . . . . . . . . . . . . . Potential Cave-ins 14 | . . . . . . . . . . . . 7 . . . . . . . . . . . . 7 . . Cave-ins Triggered 2 | . . . . . . . . . . . . 1 . . 1 . . . . . . . . . . . . Exploration Rate (%) 43 | 4 72 81 61 58 37 71 9 33 61 68 67 12 18 13 89 56 7 70 5 66 9 69 4 95 31 8 32 Regions Visited 27 Branch Regions 12 Pre-discovered Areas 5 | . . 1 1 . . . . 1 . 1 1 . . . . . . . . . . . . . . . . Known Exits Taken 9 | . 1 . . . 1 . . 1 . . . . 1 . . . . . 1 . 1 1 1 . . 1 . Unknown Exits Taken 13 | 1 . 1 1 1 . . 1 . 1 1 1 1 . 1 1 1 . . . . . . . . 1 . . Scrap Searched 8 | . . 1 . 1 . . . 3 1 . 1 . . . . 1 . . . . . . . . . . . Spaces Dug 127 | . . . . . . 2 . . 11 . . 21 11 . . . . . . 2 . . 2 . . 28 50 Terrain Destroyed 608 | . . . . . 27 25 1 . 57 . 10 73 13 . 28 5 37 . 3 21 31 29 2 2 8 55 181 Melee 20 | . . . . . . . . . . . . 11 5 . . . . . . 2 . . 2 . . . . Projectile 171 | . . . . . 27 . 1 . 8 . 10 20 3 . 13 3 . . 1 19 2 29 . 2 8 8 17 AOE 417 | . . . . . . 25 . . 49 . . 42 5 . 15 2 37 . 2 . 29 . . . . 47 164 Terrain Rammed . | . . . . . . . . . . . . . . . . . . . . . . . . . . . . Walls Destroyed . | . . . . . . . . . . . . . . . . . . . . . . . . . . . . Machines Disabled . | . . . . . . . . . . . . . . . . . . . . . . . . . . . . Actions | -11 -10 -10 -10 -9 -8 -8 -7 -7 -7 -7 -6 -6 -5 -5 -5 -4 -4 -4 -4 -4 -4 -4 -3 -3 -2 -1 -1 --------- Run | Yrd Mat Min Exi Min Mat Gar Fac Low Low Dat Pro Fac Fac Upp War Pro Fac Was Fac Gar Fac Ext Res DSF Res Acc Com Total 13381 | 60 643 401 265 444 748 720 321 232 464 85 644 404 678 106 843 511 258 89 252 905 309 997 92 256 1151 304 1199 Wait 674 | . 35 5 . 130 188 23 3 5 . . 94 20 34 . 4 18 3 . 3 19 15 6 . 14 28 4 23 Move 10963 | 42 491 372 255 268 479 558 300 216 425 85 475 299 556 106 704 463 218 84 215 660 266 813 81 169 1029 272 1062 Hop . | . . . . . . . . . . . . . . . . . . . . . . . . . . . . Pick Up 210 | 7 18 8 4 5 16 6 2 3 1 . 10 9 9 . 8 5 13 . 13 16 2 17 . 6 16 1 15 Fast Attach 131 | 6 2 . . 2 5 2 1 . 1 . 1 5 8 . 11 . 3 3 5 16 7 21 1 9 16 1 5 Attach 132 | . 3 . . 3 5 5 2 . 1 . 10 8 6 . 9 12 6 2 8 21 . 7 2 2 2 2 16 Detach 20 | . . . . . . . 1 . . . . 2 . . 1 2 3 . 2 2 . 1 2 1 2 1 . Swap 141 | . 4 1 . . 4 10 5 4 7 . 3 3 13 . 12 . . . 1 11 . 15 2 9 9 3 25 Drop 198 | . 2 9 6 4 20 9 2 4 2 . 5 3 16 . 10 . 4 . 1 6 6 23 1 21 29 . 15 Fire 719 | 5 85 4 . 32 27 79 4 . 27 . 46 38 29 . 29 11 8 . 4 103 12 77 . 21 20 20 38 Melee 32 | . . . . . . . . . . . . 16 7 . . . . . . 6 . . 3 . . . . Ram 1 | . . . . . . . . . . . . 1 . . . . . . . . . . . . . . . Kick 3 | . . . . . 1 . . . . . . . . . . . . . . . 1 1 . . . . . Crush 9 | . 3 2 . . 3 . 1 . . . . . . . . . . . . . . . . . . . . Escape Stasis 49 | . . . . . . . . . . . . . . . . . . . . 45 . . . 4 . . . Rewire 99 | . . . . . . 28 . . . . . . . . 55 . . . . . . 16 . . . . . Trap . | . . . . . . . . . . . . . . . . . . . . . . . . . . . . Miscellaneous . | . . . . . . . . . . . . . . . . . . . . . . . . . . . . Route ------- -11/Scrapyard -10/Materials (discovered 2 exits: [*Mat] / *Min) -10/Mines (discovered 2 exits: [*Mat] / *Exi) -10/Exiles -9/Mines -8/Materials (discovered 2 exits: *Fac / Gar) -8/Garrison (discovered 3 exits: *Fac x3) -7/Factory -7/Lower Caves (discovered 2 exits: *Low / [*Zio]) -7/Lower Caves -7/Data Miner -6/Proximity Caves -6/Factory -5/Factory -5/Upper Caves -5/Warlord -4/Proximity Caves -4/Factory (discovered 2 exits: Res / Ext) -4/Waste -4/Factory -4/Garrison (discovered 3 exits: *Fac x3) -4/Factory (discovered 3 exits: *Res / [*Upp] / *Ext) -4/Extension (discovered 2 exits: *Res / [*Cet]) -3/Research (discovered 2 exits: Tes / DSF) -3/DSF -2/Research -1/Access -1/Command To Epsilon Eridani History --------- Turn | Location | Event 12 | -11/Scrapyard | Discovered new exit (range 13) 96 | -11/Scrapyard | Entered Materials 301 | -10/Materials | Build established: Mutant 1191 | -10/Materials | Discovered new exit (range 8) 1255 | -10/Materials | Identified exit to Mines 1843 | -10/Materials | Core integrity fell below 50% 1882 | -10/Materials | Lost 3 parts (1p1n1w) 1987 | -10/Materials | Entered Mines 2020 | -10/Mines | Met a Derelict bent on vengeance 2104 | -10/Mines | Met a Derelict shopkeep closing up shop 2201 | -10/Mines | Discovered new exit (range 7) 2400 | -10/Mines | Assisted by bots powering up and referring to "LRC-V3" 2494 | -10/Mines | Learned location of Zion (-6) 2550 | -10/Mines | Found a hidden stash of uninstalled traps 2759 | -10/Mines | Found a Scrap Suit stashed away for nefarious purposes 2780 | -10/Mines | Found Scrap Suit 3167 | -10/Mines | Deemed a non-threat by the Exiles lab entrance 3170 | -10/Mines | Discovered new exit (range 5) 3188 | -10/Mines | Entered Exiles 3188 | -10/Exiles | Accompanied by 3 allies 3270 | -10/Exiles | Met 8R-AWN 3323 | -10/Exiles | Met EX-HEX 3442 | -10/Exiles | Met EX-DEC 3513 | -10/Exiles | Met EX-BIN 3557 | -10/Exiles | Aligned with FarCom system 3560 | -10/Exiles | Given EX-Vault access code 3635 | -10/Exiles | Opened EX-Vault 3662 | -10/Exiles | Found XL Autogun Array 3728 | -10/Exiles | Warned to stay clear of 0b10 Research branches 3953 | -10/Exiles | Discovered new exit (range 14) 3990 | -10/Exiles | Left Exiles lab with XL Autogun Array 3990 | -10/Exiles | Entered Mines 3990 | -9/Mines | Accompanied by 3 allies 4293 | -9/Mines | Assembled infested the area 4298 | -9/Mines | Assisted by a Guerilla fighting off Assembled 5047 | -9/Mines | Core integrity fell below 20% 5093 | -9/Mines | Discovered new exit (range 6) 5105 | -9/Mines | Entered Materials 5105 | -8/Materials | Evolved 4 slots: Propulsion x2, Weapon x2 5436 | -8/Materials | Build established: Skirmisher 5802 | -8/Materials | Discovered new exit (range 17) 5987 | -8/Materials | Repaired Imp. Weapon Shielding 6077 | -8/Materials | Identified exit to Garrison 6231 | -8/Materials | Entered Garrison 6281 | -8/Garrison | Triggered checkpoint 6373 | -8/Garrison | Garrison Relay disabled 6375 | -8/Garrison | Garrison Relay disabled 6559 | -8/Garrison | Triggered checkpoint 6705 | -8/Garrison | Discovered new exit (range 3) 6873 | -8/Garrison | Triggered checkpoint 6909 | -8/Garrison | Garrison Relay disabled 7021 | -8/Garrison | Triggered checkpoint 7138 | -8/Garrison | Discovered new exit (range 47) 7138 | -8/Garrison | Discovered new exit (range 20) 7138 | -8/Garrison | Discovered new exit (range 68) 7283 | -8/Garrison | Triggered checkpoint 7500 | -8/Garrison | Entered Factory 7500 | -7/Factory | Evolved 2 slots: Utility x2 7791 | -7/Factory | Build established: Tank 8214 | -7/Factory | Discovered new exit (range 9) 8229 | -7/Factory | Entered Lower Caves 8235 | -7/Lower Caves | Met a Warlord Commander 8236 | -7/Lower Caves | Learned location of Warlord (-5) 8237 | -7/Lower Caves | Warlord Commander delivered Encrypted Comm Array 8245 | -7/Lower Caves | Found Encrypted Comm Array 8324 | -7/Lower Caves | Identified exit to Lower Caves 8430 | -7/Lower Caves | A Derelict revealed a hidden shortcut to a safe place 8611 | -7/Lower Caves | Entered another Lower Caves area 8702 | -7/Lower Caves | Spotted B-75 Beast 8719 | -7/Lower Caves | Destroyed B-75 Beast 8735 | -7/Lower Caves | Learned Factory garrison access intel 9008 | -7/Lower Caves | Encountered a Warlord checkpoint 9107 | -7/Lower Caves | Attracted the attention of an 0b10 base 9147 | -7/Lower Caves | Destroyed 7 combat bots 9284 | -7/Lower Caves | Attracted the attention of an 0b10 checkpoint 9327 | -7/Lower Caves | Destroyed 8 combat bots 9389 | -7/Lower Caves | Discovered new exit (range 16) 9418 | -7/Lower Caves | Entered Data Miner 9418 | -7/Data Miner | Discovered new exit (range 6) 9450 | -7/Data Miner | Met Data Miner 9482 | -7/Data Miner | Learned location of Section 7 (-2) 9482 | -7/Data Miner | Acquired the access code to Warlord's prototype stash 9519 | -7/Data Miner | Received God Mode back door access code from Data Miner 9560 | -7/Data Miner | Entered Proximity Caves 9596 | -6/Proximity Caves | Attracted the attention of an 0b10 checkpoint 9749 | -6/Proximity Caves | Spotter reported a threat 9769 | -6/Proximity Caves | Spotter reported a threat 9863 | -6/Proximity Caves | Spotter reported a threat 10583 | -6/Proximity Caves | Build established: Skirmisher 10863 | -6/Proximity Caves | Spotted B-75 Beast 10874 | -6/Proximity Caves | Core integrity fell below 50% 10912 | -6/Proximity Caves | Destroyed B-75 Beast 10938 | -6/Proximity Caves | Build established: Tank 10943 | -6/Proximity Caves | Lost 7 parts (2p2n2u1w) 11740 | -6/Proximity Caves | Discovered new exit (range 8) 11827 | -6/Proximity Caves | Entered Factory 11827 | -6/Factory | Evolved 2 slots: Utility x2 11828 | -6/Factory | Loaded intel: 4 garrison access locations 12135 | -6/Factory | Joined by Warlord Dakka squad 12177 | -6/Factory | Search patrols dispatched 12373 | -6/Factory | Crushed by falling debris 12373 | -6/Factory | System corruption reached 10% 12404 | -6/Factory | Lost 4 parts (2n2u) 12527 | -6/Factory | Search patrols dispatched 12677 | -6/Factory | Garrison activated, responded to threat 12715 | -6/Factory | Discovered new exit (range 10) 12730 | -6/Factory | Entered another Factory area 12730 | -5/Factory | Evolved 2 slots: Power x1, Utility x1 12948 | -5/Factory | Build established: Scavenger-Skirmisher 13634 | -5/Factory | Discovered new exit (range 10) 13691 | -5/Factory | Identified exit to Upper Caves 13694 | -5/Factory | Entered Upper Caves 13701 | -5/Upper Caves | Learned Factory stockpile data 13728 | -5/Upper Caves | Learned 8 Factory zone layouts 13856 | -5/Upper Caves | A Derelict revealed a hidden shortcut to "reach the base" 13864 | -5/Upper Caves | Entered Warlord 13939 | -5/Warlord | System corruption cleaned by Quarantine Array 14016 | -5/Warlord | Received a Watcher feed algorithm from an ecstatic Tinkerer 14148 | -5/Warlord | Build established: Tank 14155 | -5/Warlord | Learned Armory emergency access door positions 14158 | -5/Warlord | Learned Armory recycling unit intel 14158 | -5/Warlord | Learned Armory garrison access intel 14158 | -5/Warlord | Learned Research terminal intel 14416 | -5/Warlord | Opened Warlord's prototype stash 14426 | -5/Warlord | Found Prototype Hackware 14426 | -5/Warlord | Identified Ghost Barrier 14432 | -5/Warlord | Found Prototype Processor 14432 | -5/Warlord | Identified Exp. Target Analyzer 14444 | -5/Warlord | Found Prototype Reactor 14466 | -5/Warlord | Met Warlord 14491 | -5/Warlord | Warlord's base attacked by MAIN.C 14601 | -5/Warlord | Found Prototype Energy Gun 14602 | -5/Warlord | Identified Vortex Shotgun 14719 | -5/Warlord | Build established: Hacker-Tank 14820 | -5/Warlord | Found Prototype Device 14820 | -5/Warlord | Identified Minesniffer Drone Bay 14841 | -5/Warlord | Warlord forces counterattacked 14962 | -5/Warlord | Spotted Executioner 14984 | -5/Warlord | Allies destroyed Executioner 15011 | -5/Warlord | Lost 12 allies 15030 | -5/Warlord | Spotted Striker 15040 | -5/Warlord | Spotted Striker 15056 | -5/Warlord | Allies destroyed Striker 15091 | -5/Warlord | Spotted Executioner 15091 | -5/Warlord | Spotted Striker 15104 | -5/Warlord | Crushed by falling debris 15120 | -5/Warlord | Destroyed Executioner 15125 | -5/Warlord | Lost 6 allies 15125 | -5/Warlord | System corruption reached 10% 15141 | -5/Warlord | Destroyed 8 combat bots 15146 | -5/Warlord | Found Prototype Processor 15149 | -5/Warlord | Lost 13 parts (2p2n5u4w) 15150 | -5/Warlord | Found Prototype Processor 15150 | -5/Warlord | Identified Exp. Core Analyzer 15166 | -5/Warlord | Warlord base infiltrated, sounded retreat 15185 | -5/Warlord | Discovered new exit (range 9) 15191 | -5/Warlord | Spotted Striker 15198 | -5/Warlord | Entered Proximity Caves 15198 | -4/Proximity Caves | Identified Vortex Chain Reactor 15199 | -4/Proximity Caves | Identified Exp. Targeting Computer 15201 | -4/Proximity Caves | System corruption reached 30% 15207 | -4/Proximity Caves | Spotter reported a threat 15207 | -4/Proximity Caves | Spotter reported a threat 15481 | -4/Proximity Caves | Build established: Scavenger-Skirmisher 15510 | -4/Proximity Caves | Spotter reported a threat 15631 | -4/Proximity Caves | Spotter reported a threat 16096 | -4/Proximity Caves | Discovered new exit (range 4) 16122 | -4/Proximity Caves | Entered Factory 16122 | -4/Factory | Evolved 2 slots: Utility x2 16123 | -4/Factory | Identified exit to Research 16124 | -4/Factory | Identified exit to Extension 16372 | -4/Factory | Search patrols dispatched 16575 | -4/Factory | Sucked down chute 16575 | -4/Factory | Entered Waste 16586 | -4/Waste | Spotted C-40 Crusher 16587 | -4/Waste | Spotted C-40 Crusher 16591 | -4/Waste | Spotted C-40 Crusher 16598 | -4/Waste | Spotted C-40 Crusher 16601 | -4/Waste | Crushed by Compactor (1 part destroyed, 1 dropped) 16607 | -4/Waste | Crushed by Compactor (1 part destroyed, 1 dropped) 16622 | -4/Waste | Crushed by Compactor (0 parts destroyed, 1 dropped) 16638 | -4/Waste | Lost 3 parts (1n1u1w) 16649 | -4/Waste | Spotted C-40 Crusher 16666 | -4/Waste | Spotted C-40 Crusher 16668 | -4/Waste | Discovered new exit (range 11) 16679 | -4/Waste | Entered Factory 16965 | -4/Factory | Lost 3 parts (1n1u1w) 17090 | -4/Factory | Identified exit to Garrison 17092 | -4/Factory | Entered Garrison 17140 | -4/Garrison | Triggered checkpoint 17167 | -4/Garrison | Garrison Relay disabled 17378 | -4/Garrison | Lost 5 parts (1p2u2w) 17393 | -4/Garrison | Build established: Scavenger-Gunner 17449 | -4/Garrison | Spotted B-86 Titan 17489 | -4/Garrison | Triggered checkpoint 17528 | -4/Garrison | Destroyed B-86 Titan 17543 | -4/Garrison | Lost 5 parts (1p1n3w) 17674 | -4/Garrison | Triggered checkpoint 17678 | -4/Garrison | Garrison Relay disabled 17702 | -4/Garrison | Discovered new exit (range 14) 17751 | -4/Garrison | Triggered checkpoint 17789 | -4/Garrison | Spotted B-86 Titan 17789 | -4/Garrison | Spotted B-86 Titan 17865 | -4/Garrison | Garrison Relay disabled 17869 | -4/Garrison | System corruption reached 10% 17900 | -4/Garrison | Triggered checkpoint 17925 | -4/Garrison | Lost 5 parts (1p1n3u) 17953 | -4/Garrison | Garrison Relay disabled 17991 | -4/Garrison | Lost 6 parts (2n4w) 18106 | -4/Garrison | Triggered checkpoint 18156 | -4/Garrison | Lost 4 parts (3n1w) 18178 | -4/Garrison | Discovered new exit (range 13) 18186 | -4/Garrison | Triggered checkpoint 18233 | -4/Garrison | Discovered new exit (range 6) 18311 | -4/Garrison | Entered Factory 18403 | -4/Factory | Discovered new exit (range 9) 18434 | -4/Factory | Discovered exit to Research (range 19) 18606 | -4/Factory | Build established: Scavenger-Assassin 18668 | -4/Factory | Discovered exit to Extension (range 19) 18697 | -4/Factory | Entered Extension 19131 | -4/Extension | Build established: Scavenger-Gunner 19230 | -4/Extension | Rescued a captive Derelict 19230 | -4/Extension | Rescued a captive Derelict 19266 | -4/Extension | Rescued A7 19388 | -4/Extension | Core integrity fell below 50% 19497 | -4/Extension | Disrupted transfer network 19615 | -4/Extension | Spotted B-86 Titan 19643 | -4/Extension | Spotted B-86 Titan 19649 | -4/Extension | Allies destroyed B-86 Titan 19660 | -4/Extension | Destroyed B-86 Titan 19671 | -4/Extension | System corruption reached 30% 19696 | -4/Extension | Found Prototype Protection 19696 | -4/Extension | Identified Med. Regenerative Plating 19698 | -4/Extension | Lost 6 allies 19708 | -4/Extension | Core integrity fell below 20% 19740 | -4/Extension | Extracted ID and sensor layout for unrecognized location from A7's data core 19748 | -4/Extension | Lost 15 parts (3p4n8w) 19951 | -4/Extension | Discovered new exit (range 22) 19952 | -4/Extension | Discovered exit to Research (range 21) 20024 | -4/Extension | Entered Research 20024 | -3/Research | Evolved 2 slots: Utility x1, Weapon x1 20025 | -3/Research | Identified exit to Testing 20026 | -3/Research | Loaded intel: 23 terminal locations 20137 | -3/Research | Identified exit to DSF 20137 | -3/Research | Entered DSF 20173 | -3/DSF | Additional patrols routed to DSF 20290 | -3/DSF | Discovered new exit (range 17) 20295 | -3/DSF | Found Unknown Protection 20295 | -3/DSF | Identified Imp. Powered Armor 20482 | -3/DSF | Sterilization system engaged 20502 | -3/DSF | Ambient heat levels rising (+10) 20513 | -3/DSF | Entered Research 20513 | -2/Research | Warlord forces began assault on 0b10 20513 | -2/Research | Evolved 2 slots: Propulsion x2 20538 | -2/Research | Distinguished unit "Smaug Mourners" dispatched to help 20538 | -2/Research | Distinguished unit "Lair Dwellers" dispatched to help 20623 | -2/Research | Research machine network offline 20768 | -2/Research | Spotted Striker 20800 | -2/Research | Lost 6 allies 20975 | -2/Research | Spotted Striker 21003 | -2/Research | Met DD-05H 21005 | -2/Research | Lost 4 allies 21067 | -2/Research | Found Fusion Bomb Launcher 21122 | -2/Research | Borebot progress halted 21220 | -2/Research | Borebot progress halted 21291 | -2/Research | Discovered new exit (range 15) 21400 | -2/Research | Lost 5 allies 21514 | -2/Research | Spotted Striker 21526 | -2/Research | Spotted Striker 21567 | -2/Research | Lost 3 allies 21689 | -2/Research | Found Exp. Core Analyzer 22022 | -2/Research | Given Cave Seal Controls access code 22288 | -2/Research | Entered Access 22288 | -1/Access | Evolved 2 slots: Power x1, Utility x1 22289 | -1/Access | Identified exit to Command 22352 | -1/Access | Garrison activated, responded to threat 22521 | -1/Access | Destroyed 8 combat bots 22575 | -1/Access | Build established: Scavenger-Skirmisher 22709 | -1/Access | Found Prototype Device 22709 | -1/Access | Identified Thermal Barrier 22796 | -1/Access | Entered Command 23024 | -1/Command | Build established: Scavenger-Tank 23223 | -1/Command | Disengaged cave seal 23223 | -1/Command | Derelicts emerged from the dark tunnel 23223 | -1/Command | Welcomed Warlord to Command 23570 | -1/Command | Lost 3 allies 23734 | -1/Command | Disengaged cave seal 23734 | -1/Command | Derelicts emerged from the dark tunnel 23864 | -1/Command | Lost 3 allies 23885 | -1/Command | Spotted Executioner 23885 | -1/Command | Spotted Striker 23886 | -1/Command | Spotted Alpha 7 23886 | -1/Command | Spotted Executioner 23890 | -1/Command | Destroyed Executioner 23890 | -1/Command | Spotted Executioner 23890 | -1/Command | Spotted Striker 23890 | -1/Command | Spotted Alpha 7 23890 | -1/Command | Spotted Executioner 23893 | -1/Command | Spotted B-99 Colossus 23897 | -1/Command | Spotted B-99 Colossus 23905 | -1/Command | Destroyed Executioner 23926 | -1/Command | Destroyed B-99 Colossus 23933 | -1/Command | Found Prototype Processor 23934 | -1/Command | Lost 3 parts (3u) 23945 | -1/Command | Discovered new exit (range 11) 23961 | -1/Command | Lost 11 allies 23990 | -1/Command | Identified Exp. Melee Analysis Suite 24036 | -1/Command | Phase Generator disabled 24304 | -1/Command | Identified exit to Surface 24530 | -1/Command | Warlord destroyed during the assault 24535 | -1/Command | Destroyed 16 combat bots 24537 | -1/Command | Released all parts (10) 24565 | -1/Command | Lost 19 parts (3p2n7u7w) 24584 | -1/Command | Lost 20 allies 24586 | *** | Escaped! Last Messages --------------- 24537_ Released Lrg. Storage Unit. 24537_ Released Exp. Core Analyzer. 24537_ Released Adv. Target Analyzer. 24537_ Released Adv. Cooling System. 24537_ Released Biometal Heavy Treads. 24537_ Released Adv. Heavy Siege Treads. 24537_ Released Enh. Nova Cannon. 24537_ Released Biometal Heavy Treads. 24537_ Released Thermal Barrier. [Achievement: Live, Flee, And Rebuild] 24538_ Slug penetrates ZI-U3B(B). 24539_ Slug penetrates H6-1LL(B). 24543_ Acquired Mic. Antimatter Reactor. 24546_ Slug penetrates Wall. 24548_ Acquired Imp. Antigrav System. 24549_ Acquired 23 matter. 24550_ Acquired Imp. Antigrav System. 24552_ Acquired 10 matter. 24556_ System corrupted: Matter fused (-6). 24571_ Acquired 6 matter. Map ----- +----------------------------------------------------+ | ?????????????????????????????????????????????????? | | ?????????????????????????????????????????????????? | | ?????????????????????????????????????????????????? | | ?????????????????????????????????????????????????? | | ?????????????????????????????????????????????????? | | ?????????????????????????????????????????????????? | | ?????????????????????????????????????????????????? | | ?????????????????????????????????????????????????? | | ?????????????????????????????????????????????????? | | ?????????????????????????????????????????????????? | | ?????????????????????????????????????????????????? | | ?????????????????????????????????????????????????? | | ?????????????????????????????????????????????????? | | ?????????????????????????????????????????????????# | | ?????????????????????????????????????????????????# | | ?????????????????????????????????????????????????# | | ????????????????????????????????????????????????## | | ????????????????????????????????????????????????# | | ???????????????????##############???????????????## | | ???????????????????# #???###????###???# | | ???????????????????# #####"###### ##### | | ????????###????????# ^^ ^ # # # ; # # #% ## | | ???????? =#???????# # %#" | | ???????? %+???????# % % % | | ????????# =#???????# ^ "" ^ % * %% % | | ????????# #???????# @" % | | #####??## #???????# % % % | | ??? #???????# [ # %#%"% | | ????? #???????# ^ # ;= #%" %""" | | #??????# #???#+#?# ###" ;;;"### % " | | #??????#[ #???# #?# #?#########" # | | ########]]#???# #?##############?????????## # | | # ##% ##??# #?????????????????????????# " | | # ## "##?# #?????????###############?# " | | # # % "### ########### !! = "### " | | # |! T" # !! %"##" " | | # [#%"" # != + %+ " | | # #%! ############# # """" # | | + ##+#############?#% " ! #### ! # | | # # =! #?# ##%"+"##"""############ | | # # !! ### % %% """"#" | | # # "% %% % + | | # # "%%% % % " | | # # """Y""" ###%% !!% " | | ""##### """"""" #?# % !!% % # | | """####[""############?# ! % % + | | " ] [[#????????????# # | | " [[###### =!%??# % % % """# # | | + [[[+ " %*[ ?"%% #### + | | " ###### %%??%/ #??# # | +----------------------------------------------------+ Best States ------------- Heat Dissipation 136 Energy Generation 59 Energy Capacity 700 Matter Stores 300 Matter Capacity 300 Sight Range 22 Robot Scan Range 16 Terrain Scan Range 24 Terrain Scan Density 210 Jamming Range 16 Base Temperature (-) 200 Armor Coverage 1700 Resistance: KI 25 Resistance: TH 50 Power Shielding 66 Weapon Shielding 66 Phase Shifting 10 Evasion (%) 65 Targeting Accuracy 16 Launcher Accuracy 30 Target Analysis 8 Core Analysis 11 Recoil Reduction 6 Matter Filtering 30 Offensive Hacking 10 Defensive Hacking 20 Item Schematics ----------------- Combat Drone Bay | -7/Data Miner | Free Biomechanical Wings | -7/Data Miner | Free Lgt. Regenerative Plating | -7/Data Miner | Free Gravity Neutralizer | -7/Data Miner | Free Hvy. Treads | -7/Data Miner | Free Prc. Rocket Launcher | -7/Data Miner | Free Imp. Transmission Jammer | -7/Data Miner | Free Disruptor Cannon | -7/Data Miner | Free Imp. System Shield | -7/Data Miner | Free Thunder Leg | -7/Data Miner | Free Imp. Antigrav System | -7/Data Miner | Free Adv. Trap Scanner | -7/Data Miner | Free Robot Schematics ------------------ M-22 Extractor | -7/Data Miner | Free L-41 Fighter | -7/Data Miner | Free R-10 Processor | -7/Data Miner | Free E-15 Imp | -7/Data Miner | Free G-50 Soldier | -7/Data Miner | Free A-15 Conveyor | -7/Data Miner | Free Fabricated ------------ Nothing Repaired ---------- Imp. Weapon Shielding | 25% | -8/Materials Studied --------- Imp. Proton Missile Launcher | -6/Factory | Hacked Plasma Rifle | -4/Factory | Hacked Alien Tech Used ----------------- None Achievements -------------- All Kinds Of Bad News Collateral Damage Doshington Giant Slayer Live, Flee, And Rebuild Showdown Turtlemind Welcome To The Revolution Challenges ------------ None Game ------ Seed RemotePotentialPenetrator Manual? 0 Play Time 02:55:49 Cumulative 80.8 hours Start 2026.02.16 @ 17:50:49 End 2026.02.16 @ 22:46:02 Sessions 7 Manual Loads 0 Difficulty Rogue Special Mode None Game No. 113 Rogue 38 Adventurer 75 Explorer 0 Win Type 0 Total 4 Types 4/0/0/0/0/0/0/0/0/0 Lore% 40 Gallery% 46 Achievement% 35 Wizard Run 0 Options --------- Layout 2 ASCII 0 Keyboard 0 Movement Numpad Keybinds 0 Fullscreen 2 Font 24/Smallcaps Map View 50x44 Zoom Use 0% Tactical HUD 1 Map Filters NONE Filters NONE Steam 1 RUN: c9306479-5d9e-48d1-b628-aff2bf9d14ab